[Event "Early-Titled-Tuesday-Blitz-May-14-2024"]
[Site "Chess.com"]
[Date "2024.05.14"]
[Round "11"]
[White "SujanaLohani"]
[Black "alvarorodriguezavila"]
[Result "0-1"]
[WhiteElo "2018"]
[BlackElo "2319"]
[TimeControl "180+1"]
[EndTime "10:06:20 PDT"]
[Termination "alvarorodriguezavila won by checkmate"]

1. e4 {[%clk 0:02:54.7]} 1... g6 {[%clk 0:03:00.1]} 2. d4 {[%clk 0:02:54.3]}
2... Bg7 {[%clk 0:03:00.8]} 3. Nc3 {[%clk 0:02:54.4]} 3... c5 {[%clk 0:03:00.7]}
4. dxc5 {[%clk 0:02:49.2]} 4... Qa5 {[%clk 0:02:58.4]} 5. Nf3 {[%clk 0:02:48.1]}
5... Bxc3+ {[%clk 0:02:57]} 6. bxc3 {[%clk 0:02:48.1]} 6... Qxc3+ {[%clk
0:02:57.7]} 7. Bd2 {[%clk 0:02:48.7]} 7... Qxc5 {[%clk 0:02:58.3]} 8. Bd3 {[%clk
0:02:47.9]} 8... Nc6 {[%clk 0:02:58.4]} 9. O-O {[%clk 0:02:47.8]} 9... Nf6
{[%clk 0:02:58.9]} 10. Rb1 {[%clk 0:02:47.3]} 10... O-O {[%clk 0:02:58.7]} 11.
Rb5 {[%clk 0:02:45.9]} 11... Qa3 {[%clk 0:02:52.4]} 12. e5 {[%clk 0:02:35.8]}
12... Ne8 {[%clk 0:02:49.4]} 13. Qb1 {[%clk 0:02:17.7]} 13... d6 {[%clk
0:02:16.2]} 14. Be4 {[%clk 0:02:12.1]} 14... Nc7 {[%clk 0:02:07]} 15. Bxc6
{[%clk 0:02:07.3]} 15... bxc6 {[%clk 0:02:05.8]} 16. Ra5 {[%clk 0:01:57.8]}
16... Qxa5 {[%clk 0:01:40.6]} 17. Bxa5 {[%clk 0:01:55.7]} 17... Nd5 {[%clk
0:01:41.5]} 18. c4 {[%clk 0:01:54.4]} 18... Nf4 {[%clk 0:01:40.9]} 19. Qe4
{[%clk 0:01:50.8]} 19... Nh5 {[%clk 0:01:34.7]} 20. Qxc6 {[%clk 0:01:41]} 20...
Be6 {[%clk 0:01:28.6]} 21. exd6 {[%clk 0:01:38.3]} 21... Rac8 {[%clk 0:01:28.5]}
22. Qb7 {[%clk 0:01:30.4]} 22... exd6 {[%clk 0:01:26.2]} 23. Qxa7 {[%clk
0:01:28.4]} 23... Bxc4 {[%clk 0:01:22.7]} 24. Rc1 {[%clk 0:01:26.9]} 24... Nf4
{[%clk 0:01:22.8]} 25. Nd4 {[%clk 0:01:20.8]} 25... Bd5 {[%clk 0:01:13.8]} 26.
Rxc8 {[%clk 0:01:17.5]} 26... Rxc8 {[%clk 0:01:14.7]} 27. f3 {[%clk 0:01:08]}
27... Nd3 {[%clk 0:00:59.2]} 28. Qa6 {[%clk 0:01:01.4]} 28... Rc1+ {[%clk
0:00:55.7]} 29. Be1 {[%clk 0:00:41]} 29... Rxe1# {[%clk 0:00:56.6]} 0-1

[Event "Early-Titled-Tuesday-Blitz-May-14-2024"]
[Site "Chess.com"]
[Date "2024.05.14"]
[Round "11"]
[White "mfschulz"]
[Black "th3d4rkness"]
[Result "1-0"]
[WhiteElo "2313"]
[BlackElo "2164"]
[TimeControl "180+1"]
[EndTime "10:06:25 PDT"]
[Termination "mfschulz won on time"]

1. d4 {[%clk 0:03:00.9]} 1... Nf6 {[%clk 0:02:59.5]} 2. Bg5 {[%clk 0:02:59.8]}
2... Ne4 {[%clk 0:02:57.8]} 3. Bf4 {[%clk 0:03:00]} 3... c5 {[%clk 0:02:57.4]}
4. f3 {[%clk 0:03:00.3]} 4... Nf6 {[%clk 0:02:56.5]} 5. d5 {[%clk 0:03:00.1]}
5... d6 {[%clk 0:02:50.4]} 6. e4 {[%clk 0:03:00.3]} 6... e6 {[%clk 0:02:40.7]}
7. c4 {[%clk 0:03:00]} 7... exd5 {[%clk 0:02:38.4]} 8. cxd5 {[%clk 0:03:00.2]}
8... g6 {[%clk 0:02:38.3]} 9. Nc3 {[%clk 0:03:00]} 9... a6 {[%clk 0:02:36.6]}
10. a4 {[%clk 0:02:59]} 10... Bg7 {[%clk 0:02:36.1]} 11. Qd2 {[%clk 0:02:55.3]}
11... O-O {[%clk 0:02:28.8]} 12. Bd3 {[%clk 0:02:55.3]} 12... Nh5 {[%clk
0:02:24.3]} 13. Be3 {[%clk 0:02:54.5]} 13... f5 {[%clk 0:02:20.3]} 14. Nge2
{[%clk 0:02:53.1]} 14... fxe4 {[%clk 0:02:13]} 15. Bxe4 {[%clk 0:02:51.4]} 15...
Nd7 {[%clk 0:02:03.4]} 16. O-O {[%clk 0:02:35.9]} 16... Ne5 {[%clk 0:02:00]} 17.
Rad1 {[%clk 0:02:25.8]} 17... Nc4 {[%clk 0:01:49.5]} 18. Qc1 {[%clk 0:02:23.1]}
18... Nxe3 {[%clk 0:01:42.2]} 19. Qxe3 {[%clk 0:02:22.4]} 19... Bd7 {[%clk
0:01:42.3]} 20. g4 {[%clk 0:02:13.7]} 20... Nf6 {[%clk 0:01:40.7]} 21. Nf4
{[%clk 0:02:11.9]} 21... b5 {[%clk 0:01:29.2]} 22. Ne6 {[%clk 0:02:08]} 22...
Bxe6 {[%clk 0:01:28.2]} 23. dxe6 {[%clk 0:02:08.1]} 23... Nxe4 {[%clk 0:01:21]}
24. Qxe4 {[%clk 0:02:01.7]} 24... Re8 {[%clk 0:00:58.7]} 25. axb5 {[%clk
0:02:00]} 25... axb5 {[%clk 0:00:45.5]} 26. f4 {[%clk 0:01:54.2]} 26... b4
{[%clk 0:00:40.5]} 27. Nd5 {[%clk 0:01:53.7]} 27... Qh4 {[%clk 0:00:30.4]} 28.
Nc7 {[%clk 0:01:39.8]} 28... Qxg4+ {[%clk 0:00:29.7]} 29. Kh1 {[%clk 0:01:40]}
29... Ra2 {[%clk 0:00:04.3]} 30. Rg1 {[%clk 0:01:31.7]} 1-0

[Event "Early-Titled-Tuesday-Blitz-May-14-2024"]
[Site "Chess.com"]
[Date "2024.05.14"]
[Round "11"]
[White "Josgar05"]
[Black "lamomiajunior"]
[Result "0-1"]
[WhiteElo "2477"]
[BlackElo "2770"]
[TimeControl "180+1"]
[EndTime "10:06:36 PDT"]
[Termination "lamomiajunior won by resignation"]

1. Nf3 {[%clk 0:03:00.9]} 1... Nf6 {[%clk 0:02:59]} 2. b3 {[%clk 0:03:00.8]}
2... g6 {[%clk 0:02:57.6]} 3. Bb2 {[%clk 0:03:01.4]} 3... Bg7 {[%clk 0:02:58.5]}
4. g3 {[%clk 0:03:01.7]} 4... O-O {[%clk 0:02:59]} 5. Bg2 {[%clk 0:03:01.7]}
5... d6 {[%clk 0:02:59]} 6. d4 {[%clk 0:03:00.6]} 6... c6 {[%clk 0:02:54.7]} 7.
c4 {[%clk 0:03:00.7]} 7... Bf5 {[%clk 0:02:54.7]} 8. O-O {[%clk 0:03:00.7]} 8...
Nbd7 {[%clk 0:02:48.4]} 9. Re1 {[%clk 0:02:59]} 9... d5 {[%clk 0:02:46.7]} 10.
cxd5 {[%clk 0:02:52.6]} 10... cxd5 {[%clk 0:02:47.6]} 11. Nc3 {[%clk 0:02:45.1]}
11... Rc8 {[%clk 0:02:46.3]} 12. Rc1 {[%clk 0:02:44.4]} 12... Qa5 {[%clk
0:02:44.2]} 13. Qd2 {[%clk 0:02:20.8]} 13... Qa6 {[%clk 0:02:37.5]} 14. Ne5
{[%clk 0:02:15.4]} 14... Rfd8 {[%clk 0:02:33]} 15. Nxd7 {[%clk 0:01:42.2]} 15...
Rxd7 {[%clk 0:02:31.7]} 16. Na4 {[%clk 0:01:38.7]} 16... Rdd8 {[%clk 0:02:27.5]}
17. Nc5 {[%clk 0:01:35.5]} 17... Qb6 {[%clk 0:02:26.2]} 18. e3 {[%clk
0:01:24.8]} 18... h5 {[%clk 0:02:21.1]} 19. h4 {[%clk 0:01:24.5]} 19... e6
{[%clk 0:02:18.7]} 20. Rc3 {[%clk 0:01:17.8]} 20... Ne4 {[%clk 0:02:12.7]} 21.
Nxe4 {[%clk 0:01:12.2]} 21... dxe4 {[%clk 0:02:13.6]} 22. Rec1 {[%clk
0:01:10.9]} 22... Rxc3 {[%clk 0:02:13.2]} 23. Qxc3 {[%clk 0:01:10.7]} 23... Bf6
{[%clk 0:02:10.3]} 24. Qc5 {[%clk 0:00:57.7]} 24... Qa6 {[%clk 0:02:07.2]} 25.
a4 {[%clk 0:00:57.1]} 25... Qe2 {[%clk 0:02:01.2]} 26. Qc2 {[%clk 0:00:53.8]}
26... Qg4 {[%clk 0:01:56.5]} 27. b4 {[%clk 0:00:39.6]} 27... g5 {[%clk
0:01:47.5]} 28. hxg5 {[%clk 0:00:38.4]} 28... Bxg5 {[%clk 0:01:48.4]} 29. Qc7
{[%clk 0:00:37.7]} 29... h4 {[%clk 0:01:45.9]} 30. gxh4 {[%clk 0:00:37.3]} 30...
Bxh4 {[%clk 0:01:46.8]} 31. Qf4 {[%clk 0:00:35.7]} 31... Qxf4 {[%clk 0:01:41.4]}
32. exf4 {[%clk 0:00:36.6]} 32... Be7 {[%clk 0:01:39.3]} 33. Rc7 {[%clk
0:00:35.8]} 33... Bxb4 {[%clk 0:01:38.9]} 34. Rxb7 {[%clk 0:00:36.3]} 34... a5
{[%clk 0:01:37.7]} 35. Bf1 {[%clk 0:00:27.5]} 35... Rc8 {[%clk 0:01:35.1]} 36.
Bb5 {[%clk 0:00:21.1]} 36... Rc2 {[%clk 0:01:29.8]} 37. Rb8+ {[%clk 0:00:20.9]}
37... Kh7 {[%clk 0:01:28.6]} 38. d5 {[%clk 0:00:21.8]} 38... Rxb2 {[%clk
0:01:28.1]} 39. dxe6 {[%clk 0:00:22.4]} 39... Bxe6 {[%clk 0:01:25.9]} 40. Rf8
{[%clk 0:00:21.9]} 40... Bxf8 {[%clk 0:01:25.2]} 0-1

[Event "Early-Titled-Tuesday-Blitz-May-14-2024"]
[Site "Chess.com"]
[Date "2024.05.14"]
[Round "11"]
[White "Witik"]
[Black "Eagle_2019"]
[Result "1-0"]
[WhiteElo "2779"]
[BlackElo "2854"]
[TimeControl "180+1"]
[EndTime "10:06:42 PDT"]
[Termination "Witik won by resignation"]

1. d4 {[%clk 0:02:59.6]} 1... d5 {[%clk 0:03:00.2]} 2. Nf3 {[%clk 0:02:58.7]}
2... Nf6 {[%clk 0:02:59.5]} 3. Bf4 {[%clk 0:02:58.6]} 3... e6 {[%clk 0:02:59]}
4. Nbd2 {[%clk 0:02:57.3]} 4... Bd6 {[%clk 0:02:59.1]} 5. e3 {[%clk 0:02:57.8]}
5... O-O {[%clk 0:02:57.9]} 6. c3 {[%clk 0:02:58]} 6... c5 {[%clk 0:02:56.1]} 7.
Bd3 {[%clk 0:02:57.2]} 7... Nc6 {[%clk 0:02:53.8]} 8. Bg3 {[%clk 0:02:55.5]}
8... b6 {[%clk 0:02:50.9]} 9. Qe2 {[%clk 0:02:55.2]} 9... Bb7 {[%clk 0:02:43]}
10. Rd1 {[%clk 0:02:54.9]} 10... Ne7 {[%clk 0:02:40.1]} 11. e4 {[%clk
0:02:48.4]} 11... c4 {[%clk 0:02:30]} 12. Bb1 {[%clk 0:02:44.4]} 12... dxe4
{[%clk 0:02:27.9]} 13. Nxe4 {[%clk 0:02:18.8]} 13... Nxe4 {[%clk 0:02:26.1]} 14.
Bxe4 {[%clk 0:02:18.7]} 14... Bxe4 {[%clk 0:02:26.1]} 15. Qxe4 {[%clk
0:02:19.6]} 15... Qd7 {[%clk 0:02:25.8]} 16. Bxd6 {[%clk 0:02:07.9]} 16... Qxd6
{[%clk 0:02:25.3]} 17. Ne5 {[%clk 0:02:08.6]} 17... b5 {[%clk 0:02:21.6]} 18.
O-O {[%clk 0:02:08.6]} 18... f6 {[%clk 0:02:20]} 19. Nf3 {[%clk 0:02:06.5]}
19... Nd5 {[%clk 0:02:19.6]} 20. Rfe1 {[%clk 0:02:06.6]} 20... Rfe8 {[%clk
0:02:18.5]} 21. g3 {[%clk 0:02:04.9]} 21... Rab8 {[%clk 0:02:16.7]} 22. a3
{[%clk 0:01:59.7]} 22... a5 {[%clk 0:02:15.9]} 23. Nd2 {[%clk 0:01:56.1]} 23...
Qc6 {[%clk 0:02:06.6]} 24. Rc1 {[%clk 0:01:48.1]} 24... e5 {[%clk 0:01:52.5]}
25. Nf3 {[%clk 0:01:41.4]} 25... exd4 {[%clk 0:01:48.3]} 26. Nxd4 {[%clk
0:01:34.5]} 26... Qd7 {[%clk 0:01:42.6]} 27. Qf3 {[%clk 0:01:28.5]} 27... b4
{[%clk 0:01:30]} 28. axb4 {[%clk 0:01:24.7]} 28... axb4 {[%clk 0:01:29.3]} 29.
Nf5 {[%clk 0:01:24.7]} 29... bxc3 {[%clk 0:01:23.6]} 30. bxc3 {[%clk 0:01:24.9]}
30... g6 {[%clk 0:01:10.1]} 31. Rxe8+ {[%clk 0:01:05]} 31... Rxe8 {[%clk
0:01:08.8]} 32. Rd1 {[%clk 0:01:05]} 32... Re5 {[%clk 0:00:57.7]} 33. Ne3 {[%clk
0:00:49.4]} 33... Qe6 {[%clk 0:00:52.1]} 34. Rxd5 {[%clk 0:00:47.9]} 34... h5
{[%clk 0:00:49.8]} 35. Rxe5 {[%clk 0:00:46.4]} 35... Qxe5 {[%clk 0:00:50.7]} 36.
Qd5+ {[%clk 0:00:46.3]} 1-0

[Event "Early-Titled-Tuesday-Blitz-May-14-2024"]
[Site "Chess.com"]
[Date "2024.05.14"]
[Round "11"]
[White "The_Machine04"]
[Black "ajeale2"]
[Result "0-1"]
[WhiteElo "2668"]
[BlackElo "2527"]
[TimeControl "180+1"]
[EndTime "10:06:48 PDT"]
[Termination "ajeale2 won on time"]

1. d4 {[%clk 0:03:00.9]} 1... d5 {[%clk 0:02:59.7]} 2. Nf3 {[%clk 0:02:58.9]}
2... Nf6 {[%clk 0:02:59.7]} 3. e3 {[%clk 0:02:59]} 3... e6 {[%clk 0:02:58.1]} 4.
Nbd2 {[%clk 0:02:58.6]} 4... c5 {[%clk 0:02:58.7]} 5. c3 {[%clk 0:02:58.9]} 5...
Nc6 {[%clk 0:02:59.3]} 6. Bd3 {[%clk 0:02:58.7]} 6... Bd6 {[%clk 0:02:59.2]} 7.
O-O {[%clk 0:02:59.1]} 7... O-O {[%clk 0:02:59.2]} 8. dxc5 {[%clk 0:02:59.5]}
8... Bxc5 {[%clk 0:03:00.1]} 9. b4 {[%clk 0:03:00.4]} 9... Bd6 {[%clk
0:02:59.4]} 10. Bb2 {[%clk 0:03:00.9]} 10... Ne5 {[%clk 0:02:59.1]} 11. Nxe5
{[%clk 0:03:01.1]} 11... Bxe5 {[%clk 0:02:59.7]} 12. a3 {[%clk 0:03:02]} 12...
Bd7 {[%clk 0:02:58.4]} 13. Nf3 {[%clk 0:02:59.8]} 13... Bd6 {[%clk 0:02:58.5]}
14. c4 {[%clk 0:03:00.7]} 14... dxc4 {[%clk 0:02:57.5]} 15. Bxc4 {[%clk
0:03:01.6]} 15... Bc6 {[%clk 0:02:53]} 16. b5 {[%clk 0:02:55.8]} 16... Be4
{[%clk 0:02:44.4]} 17. Nd2 {[%clk 0:02:23.1]} 17... Bg6 {[%clk 0:02:36.4]} 18.
Qf3 {[%clk 0:01:59.8]} 18... Bh5 {[%clk 0:02:11.5]} 19. Qxb7 {[%clk 0:01:50.3]}
19... Bxh2+ {[%clk 0:01:59]} 20. Kxh2 {[%clk 0:01:49.4]} 20... Ng4+ {[%clk
0:01:59.6]} 21. Kg1 {[%clk 0:01:46.6]} 21... Qxd2 {[%clk 0:01:59.7]} 22. Bd4
{[%clk 0:01:37.3]} 22... e5 {[%clk 0:01:52]} 23. Bxa7 {[%clk 0:01:15.9]} 23...
Qd6 {[%clk 0:01:30.7]} 24. b6 {[%clk 0:00:31.6]} 24... e4 {[%clk 0:01:25.3]} 25.
g3 {[%clk 0:00:27.4]} 25... Ne5 {[%clk 0:01:25.7]} 26. Qd5 {[%clk 0:00:13.2]}
26... Qf6 {[%clk 0:01:08.9]} 27. Ra2 {[%clk 0:00:03.4]} 27... Bf3 {[%clk
0:01:01.8]} 28. Qxe5 {[%clk 0:00:00.6]} 28... Qxe5 {[%clk 0:01:01.9]} 0-1

[Event "Early-Titled-Tuesday-Blitz-May-14-2024"]
[Site "Chess.com"]
[Date "2024.05.14"]
[Round "11"]
[White "crescentmoon2411"]
[Black "TigrVShlyape"]
[Result "1/2-1/2"]
[WhiteElo "2862"]
[BlackElo "2951"]
[TimeControl "180+1"]
[EndTime "10:06:49 PDT"]
[Termination "Game drawn - insufficient material"]

1. d4 {[%clk 0:03:00.9]} 1... f5 {[%clk 0:02:59.6]} 2. Nf3 {[%clk 0:03:00.1]}
2... Nf6 {[%clk 0:02:59.2]} 3. Nc3 {[%clk 0:03:00.6]} 3... e6 {[%clk 0:02:57.3]}
4. Bg5 {[%clk 0:03:00.3]} 4... h6 {[%clk 0:02:55.2]} 5. Bxf6 {[%clk 0:03:00.7]}
5... Qxf6 {[%clk 0:02:55.6]} 6. e4 {[%clk 0:03:01.4]} 6... Nc6 {[%clk 0:02:53]}
7. d5 {[%clk 0:02:59.6]} 7... Ne5 {[%clk 0:02:47.5]} 8. dxe6 {[%clk 0:02:59.7]}
8... Bb4 {[%clk 0:02:41.4]} 9. Nxe5 {[%clk 0:02:58.5]} 9... Qxe5 {[%clk
0:02:41]} 10. Qh5+ {[%clk 0:02:29]} 10... Kd8 {[%clk 0:02:39.2]} 11. O-O-O
{[%clk 0:02:25.5]} 11... Bxc3 {[%clk 0:02:30.1]} 12. bxc3 {[%clk 0:02:21.5]}
12... Qxe6 {[%clk 0:02:28.3]} 13. exf5 {[%clk 0:02:10.4]} 13... Qf6 {[%clk
0:02:28.3]} 14. g4 {[%clk 0:01:46.4]} 14... d6 {[%clk 0:02:18.8]} 15. Bc4 {[%clk
0:01:36.3]} 15... Qxc3 {[%clk 0:02:13.8]} 16. Qh4+ {[%clk 0:01:34.1]} 16... Qf6
{[%clk 0:02:13]} 17. Qxf6+ {[%clk 0:01:26.9]} 17... gxf6 {[%clk 0:02:12.9]} 18.
h4 {[%clk 0:01:20]} 18... Bd7 {[%clk 0:02:01]} 19. Rde1 {[%clk 0:01:10.5]} 19...
c6 {[%clk 0:01:56.9]} 20. Be6 {[%clk 0:01:05.9]} 20... Kc7 {[%clk 0:01:55.7]}
21. Bxd7 {[%clk 0:01:05.1]} 21... Kxd7 {[%clk 0:01:55.8]} 22. Re6 {[%clk
0:01:05.6]} 22... Raf8 {[%clk 0:01:55.6]} 23. Rd1 {[%clk 0:01:02.2]} 23... d5
{[%clk 0:01:55.4]} 24. c4 {[%clk 0:01:02.8]} 24... h5 {[%clk 0:01:48.3]} 25.
cxd5 {[%clk 0:01:02.9]} 25... c5 {[%clk 0:01:48]} 26. Rg1 {[%clk 0:00:41.4]}
26... hxg4 {[%clk 0:01:40.7]} 27. Rxg4 {[%clk 0:00:42.3]} 27... Rf7 {[%clk
0:01:40.9]} 28. Kc2 {[%clk 0:00:28.1]} 28... Rh5 {[%clk 0:01:39.3]} 29. Rf4
{[%clk 0:00:28.4]} 29... Rfh7 {[%clk 0:01:31.5]} 30. Rxf6 {[%clk 0:00:26.3]}
30... Rxh4 {[%clk 0:01:31.9]} 31. Rxh4 {[%clk 0:00:24.1]} 31... Rxh4 {[%clk
0:01:31.7]} 32. Rf7+ {[%clk 0:00:09.9]} 32... Kd6 {[%clk 0:01:31.9]} 33. Rxb7
{[%clk 0:00:10.3]} 33... Rf4 {[%clk 0:01:31.7]} 34. Rxa7 {[%clk 0:00:08.9]}
34... Rxf5 {[%clk 0:01:29.7]} 35. a4 {[%clk 0:00:07.3]} 35... Rxf2+ {[%clk
0:01:29]} 36. Kc3 {[%clk 0:00:06.9]} 36... Kxd5 {[%clk 0:01:29.1]} 37. Rd7+
{[%clk 0:00:06.6]} 37... Kc6 {[%clk 0:01:29.3]} 38. Rd8 {[%clk 0:00:06.9]} 38...
Rf4 {[%clk 0:01:28.1]} 39. Rc8+ {[%clk 0:00:06.6]} 39... Kb7 {[%clk 0:01:27.8]}
40. Rxc5 {[%clk 0:00:06.6]} 40... Rxa4 {[%clk 0:01:27.9]} 41. Rc4 {[%clk
0:00:07.3]} 41... Rxc4+ {[%clk 0:01:28.2]} 42. Kxc4 {[%clk 0:00:08.2]} 1/2-1/2

[Event "Early-Titled-Tuesday-Blitz-May-14-2024"]
[Site "Chess.com"]
[Date "2024.05.14"]
[Round "11"]
[White "SharapovEvgeny"]
[Black "LangesNasenhaar"]
[Result "1-0"]
[WhiteElo "2635"]
[BlackElo "2483"]
[TimeControl "180+1"]
[EndTime "10:06:51 PDT"]
[Termination "SharapovEvgeny won by checkmate"]

1. e4 {[%clk 0:02:59.9]} 1... g6 {[%clk 0:03:00.4]} 2. d4 {[%clk 0:02:59.8]}
2... Bg7 {[%clk 0:03:00.8]} 3. Nc3 {[%clk 0:03:00.2]} 3... c6 {[%clk 0:03:01.4]}
4. f4 {[%clk 0:03:00.3]} 4... d5 {[%clk 0:03:01.8]} 5. e5 {[%clk 0:03:00.9]}
5... Nh6 {[%clk 0:03:01.9]} 6. Nf3 {[%clk 0:03:01]} 6... f6 {[%clk 0:03:02]} 7.
Be3 {[%clk 0:03:00.3]} 7... Bg4 {[%clk 0:03:01.7]} 8. h3 {[%clk 0:03:00.3]} 8...
Bxf3 {[%clk 0:03:01.1]} 9. Qxf3 {[%clk 0:03:00.6]} 9... O-O {[%clk 0:03:01]} 10.
exf6 {[%clk 0:02:58.5]} 10... exf6 {[%clk 0:02:59.5]} 11. O-O-O {[%clk
0:02:57.8]} 11... f5 {[%clk 0:02:56]} 12. g4 {[%clk 0:02:57.4]} 12... Nd7 {[%clk
0:02:51.8]} 13. g5 {[%clk 0:02:57.3]} 13... Nf7 {[%clk 0:02:50.5]} 14. h4 {[%clk
0:02:57.4]} 14... Re8 {[%clk 0:02:24.3]} 15. h5 {[%clk 0:02:57]} 15... Nf8
{[%clk 0:02:22.7]} 16. hxg6 {[%clk 0:02:52.9]} 16... hxg6 {[%clk 0:02:21.5]} 17.
Bd3 {[%clk 0:02:48.9]} 17... Ne6 {[%clk 0:02:19.1]} 18. Qh3 {[%clk 0:02:42]}
18... Nh8 {[%clk 0:01:59.6]} 19. Bxf5 {[%clk 0:02:25.3]} 19... gxf5 {[%clk
0:01:54.3]} 20. Qh7+ {[%clk 0:02:23.7]} 20... Kf8 {[%clk 0:01:54.1]} 21. Qxf5+
{[%clk 0:02:20.8]} 21... Ke7 {[%clk 0:01:54.5]} 22. Rh7 {[%clk 0:02:13.5]} 22...
Kd6 {[%clk 0:01:44.6]} 23. Qg4 {[%clk 0:02:03.7]} 23... Qe7 {[%clk 0:00:45.2]}
24. f5 {[%clk 0:01:56.4]} 24... Ng6 {[%clk 0:00:18.8]} 25. fxe6 {[%clk
0:01:42.4]} 25... Kc7 {[%clk 0:00:17.9]} 26. Bf4+ {[%clk 0:01:20.2]} 26... Kb6
{[%clk 0:00:13.7]} 27. Na4+ {[%clk 0:01:06.8]} 27... Ka5 {[%clk 0:00:14.1]} 28.
Nc5 {[%clk 0:00:54.5]} 28... b6 {[%clk 0:00:13]} 29. Bd2+ {[%clk 0:00:52.8]}
29... Kb5 {[%clk 0:00:10]} 30. Qe2# {[%clk 0:00:52.2]} 1-0

[Event "Early-Titled-Tuesday-Blitz-May-14-2024"]
[Site "Chess.com"]
[Date "2024.05.14"]
[Round "11"]
[White "Alenzer"]
[Black "maurovargas01"]
[Result "1-0"]
[WhiteElo "2201"]
[BlackElo "1941"]
[TimeControl "180+1"]
[EndTime "10:06:53 PDT"]
[Termination "Alenzer won by checkmate"]

1. e4 {[%clk 0:02:59.1]} 1... d5 {[%clk 0:02:58.2]} 2. exd5 {[%clk 0:02:59]}
2... Qxd5 {[%clk 0:02:58.1]} 3. Nc3 {[%clk 0:02:59.3]} 3... Qa5 {[%clk
0:02:58.2]} 4. d4 {[%clk 0:02:58.3]} 4... c6 {[%clk 0:02:58.1]} 5. Nf3 {[%clk
0:02:58.4]} 5... Nf6 {[%clk 0:02:58]} 6. Bd2 {[%clk 0:02:56.2]} 6... Bg4 {[%clk
0:02:57.9]} 7. h3 {[%clk 0:02:53.7]} 7... Bh5 {[%clk 0:02:57.8]} 8. g4 {[%clk
0:02:51.1]} 8... Bg6 {[%clk 0:02:57.7]} 9. Ne5 {[%clk 0:02:51.6]} 9... Nbd7
{[%clk 0:02:49.7]} 10. Nxd7 {[%clk 0:02:43.7]} 10... Nxd7 {[%clk 0:02:47.8]} 11.
Bg2 {[%clk 0:02:36.9]} 11... Qb6 {[%clk 0:02:43.3]} 12. d5 {[%clk 0:02:24.3]}
12... Qxb2 {[%clk 0:02:38.7]} 13. dxc6 {[%clk 0:02:23.3]} 13... bxc6 {[%clk
0:02:38.5]} 14. Bxc6 {[%clk 0:02:21]} 14... Rc8 {[%clk 0:02:37.8]} 15. Bxd7+
{[%clk 0:02:19.9]} 15... Kd8 {[%clk 0:02:31.3]} 16. Bxc8 {[%clk 0:02:19.7]}
16... Kxc8 {[%clk 0:02:31.1]} 17. Rb1 {[%clk 0:02:08.1]} 17... Qxc2 {[%clk
0:02:27.8]} 18. Qxc2 {[%clk 0:02:07.9]} 18... Bxc2 {[%clk 0:02:27.4]} 19. Rc1
{[%clk 0:02:07.9]} 19... Bg6 {[%clk 0:02:23.8]} 20. Nb5+ {[%clk 0:02:04.6]}
20... Kb7 {[%clk 0:02:20.4]} 21. Rc7+ {[%clk 0:02:04.3]} 21... Kb6 {[%clk
0:02:20.3]} 22. Be3+ {[%clk 0:02:04.3]} 22... Kxb5 {[%clk 0:02:19.4]} 23. Rxa7
{[%clk 0:02:04.1]} 23... e5 {[%clk 0:02:17.6]} 24. a4+ {[%clk 0:01:57.8]} 24...
Kc6 {[%clk 0:02:10.2]} 25. Ke2 {[%clk 0:01:55.5]} 25... Be4 {[%clk 0:01:59.5]}
26. Rc1+ {[%clk 0:01:55.1]} 26... Kd5 {[%clk 0:01:55.9]} 27. Rxf7 {[%clk
0:01:48.2]} 27... Ke6 {[%clk 0:01:32.6]} 28. Ra7 {[%clk 0:01:36.1]} 28... Ba3
{[%clk 0:01:23.7]} 29. Rc3 {[%clk 0:01:33.6]} 29... Bb4 {[%clk 0:01:20.5]} 30.
Rb3 {[%clk 0:01:33.7]} 30... Bd6 {[%clk 0:01:17.5]} 31. Rxg7 {[%clk 0:01:29.1]}
31... Rc8 {[%clk 0:01:11.8]} 32. a5 {[%clk 0:01:21.6]} 32... Rc2+ {[%clk
0:01:10.6]} 33. Bd2 {[%clk 0:01:19.5]} 33... Bd5 {[%clk 0:01:00.2]} 34. Rb6
{[%clk 0:01:12.6]} 34... Bc4+ {[%clk 0:00:53.8]} 35. Kd1 {[%clk 0:01:11.5]}
35... Bd3 {[%clk 0:00:49.9]} 36. Bb4 {[%clk 0:01:06.6]} 36... Rxf2 {[%clk
0:00:34.6]} 37. Rxd6# {[%clk 0:01:02.7]} 1-0

[Event "Early-Titled-Tuesday-Blitz-May-14-2024"]
[Site "Chess.com"]
[Date "2024.05.14"]
[Round "11"]
[White "BillCoe"]
[Black "ploxoi"]
[Result "0-1"]
[WhiteElo "2186"]
[BlackElo "2344"]
[TimeControl "180+1"]
[EndTime "10:06:58 PDT"]
[Termination "ploxoi won by resignation"]

1. e4 {[%clk 0:03:00.9]} 1... c5 {[%clk 0:02:58.9]} 2. Nf3 {[%clk 0:03:01]} 2...
d6 {[%clk 0:02:57.1]} 3. d4 {[%clk 0:03:00.4]} 3... cxd4 {[%clk 0:02:58]} 4.
Nxd4 {[%clk 0:03:00.6]} 4... Nf6 {[%clk 0:02:58.7]} 5. Nc3 {[%clk 0:03:01.1]}
5... a6 {[%clk 0:02:59.2]} 6. h3 {[%clk 0:03:01]} 6... h5 {[%clk 0:02:57.8]} 7.
g3 {[%clk 0:03:00.3]} 7... e5 {[%clk 0:02:55.6]} 8. Nde2 {[%clk 0:02:59.7]} 8...
Be6 {[%clk 0:02:53.2]} 9. Bg2 {[%clk 0:02:59.9]} 9... Nbd7 {[%clk 0:02:48.5]}
10. Be3 {[%clk 0:02:59.8]} 10... Rc8 {[%clk 0:02:44.4]} 11. b3 {[%clk
0:02:54.1]} 11... b5 {[%clk 0:02:37.3]} 12. Nd5 {[%clk 0:02:48.1]} 12... Nxd5
{[%clk 0:02:34.4]} 13. exd5 {[%clk 0:02:49]} 13... Bf5 {[%clk 0:02:35]} 14. Rc1
{[%clk 0:02:46.9]} 14... Be7 {[%clk 0:02:13.3]} 15. c4 {[%clk 0:02:45.4]} 15...
bxc4 {[%clk 0:02:11.6]} 16. bxc4 {[%clk 0:02:32.5]} 16... O-O {[%clk 0:02:01.6]}
17. O-O {[%clk 0:02:30.2]} 17... Qa5 {[%clk 0:02:01.2]} 18. Qd2 {[%clk
0:02:28.4]} 18... Bd8 {[%clk 0:01:50.6]} 19. Kh2 {[%clk 0:02:08.9]} 19... Qxd2
{[%clk 0:01:45.6]} 20. Bxd2 {[%clk 0:02:09.8]} 20... Bd3 {[%clk 0:01:46.2]} 21.
Rfe1 {[%clk 0:02:00.3]} 21... Bxc4 {[%clk 0:01:46.2]} 22. Bb4 {[%clk 0:01:51.8]}
22... Be7 {[%clk 0:01:43.4]} 23. a3 {[%clk 0:01:50.3]} 23... f5 {[%clk
0:01:29.5]} 24. f3 {[%clk 0:01:39.9]} 24... Bxd5 {[%clk 0:01:19.1]} 25. Rcd1
{[%clk 0:01:31.2]} 25... Bb3 {[%clk 0:01:16]} 26. Rd2 {[%clk 0:01:10]} 26... Nc5
{[%clk 0:01:05.4]} 27. Nc3 {[%clk 0:01:05.5]} 27... h4 {[%clk 0:00:50.1]} 28.
Nd5 {[%clk 0:00:59.2]} 28... hxg3+ {[%clk 0:00:47.5]} 29. Kxg3 {[%clk
0:00:56.7]} 29... Bg5 {[%clk 0:00:35.9]} 30. Bxc5 {[%clk 0:00:42.9]} 30... Bxd2
{[%clk 0:00:29.8]} 31. Ne7+ {[%clk 0:00:42.4]} 31... Kf7 {[%clk 0:00:30.2]} 32.
Nxc8 {[%clk 0:00:42.4]} 32... Bxe1+ {[%clk 0:00:30.8]} 0-1